[Event "Hungarian Rapid-ch 2022"]
[Site "Ajka"]
[Date "2022.07.15"]
[Round "2.8"]
[White "Kaczur, Florian"]
[Black "Miszler, Levente"]
[Result "0-1"]
[ECO "C01"]
[WhiteElo "2482"]
[BlackElo "2243"]
[Annotator "ChessBase"]
[PlyCount "102"]
[EventDate "2022.07.15"]
[EventType "swiss"]
[EventCountry "HUN"]
[SourceTitle "playchess.com"]
[Source "ChessBase"]
[SourceQuality "1"]
[TimeControl "900+10"]

1. e4 {[%emt 0:00:12]} e6 {[%emt 0:00:12]} 2. d4 {[%emt 0:00:12]} d5 {[%emt 0:00:02]} 3. exd5 {[%emt 0:00:21]} exd5 {[%emt 0:00:03]} 4. c4 {[%emt 0:00:02]} Nf6 {[%emt 0:00:07]} 5. Nc3 {[%emt 0:00:02]} Bb4 {[%emt 0:00:11]} 6. Bd3 {[%emt 0:00:22]} O-O {[%emt 0:00:18]} 7. Nge2 {[%emt 0:00:04]} dxc4 {[%emt 0:00:30]} 8. Bxc4 {[%emt 0:00:02]} Nc6 {[%emt 0:00:18]} 9. O-O {[%emt 0:00:04]} h6 {[%emt 0:01:22]} 10. Be3 {[%emt 0:00:31]} Ne7 {[%emt 0:01:39]} 11. Qb3 {[%emt 0:00:41]} Bd6 {[%emt 0:01:20]} 12. Ng3 {[%emt 0:02:03]} Nf5 {[%emt 0:02:23]} 13. Nb5 {[%emt 0:05:24]} Bxg3 {[%emt 0:01:03]} 14. hxg3 {[%emt 0:00:14]} a6 {[%emt 0:01:04]} 15. Nc3 {[%emt 0:00:32]} Nxd4 {[%emt 0:01:29]} 16. Qd1 {[%emt 0:00:04]} c5 {[%emt 0:02:10]} 17. Bxd4 {[%emt 0:00:15]} cxd4 {[%emt 0:00:04]} 18. Ne2 {[%emt 0:00:04]} b5 {[%emt 0:00:16]} 19. Bb3 {[%emt 0:00:36]} d3 {[%emt 0:00:10]} 20. Nf4 {[%emt 0:00:02]} Bf5 {[%emt 0:00:07]} 21. Qf3 {[%emt 0:00:29]} Be4 {[%emt 0:01:11]} 22. Qe3 {[%emt 0:00:18]} Re8 {[%emt 0:00:12]} 23. Rfd1 {[%emt 0:00:10]} Ng4 {[%emt 0:00:32]} 24. Qc5 {[%emt 0:00:20]} Rc8 {[%emt 0:00:31]} 25. Bxf7+ {[%emt 0:00:24]} Kxf7 {[%emt 0:00:18]} 26. Qh5+ {[%emt 0:00:02]} Kg8 {[%emt 0:00:16]} 27. Qxg4 {[%emt 0:00:02]} Rc2 {[%emt 0:00:17]} 28. Nxd3 {[%emt 0:01:21]} Bxd3 {[%emt 0:00:29]} 29. Qf3 {[%emt 0:00:02]} Rxb2 {[%emt 0:00:33]} 30. Rxd3 {[%emt 0:00:03]} Qf6 {[%emt 0:00:23]} 31. Qxf6 {[%emt 0:00:15]} gxf6 {[%emt 0:00:01]} 32. Rd6 {[%emt 0:00:01]} Kf7 {[%emt 0:00:11]} 33. Rxa6 {[%emt 0:00:07]} Ree2 {[%emt 0:00:02]} 34. Rf1 {[%emt 0:00:03]} Rxa2 {[%emt 0:00:06]} 35. Rxa2 {[%emt 0:00:11]} Rxa2 {[%emt 0:00:02]} 36. Rb1 {[%emt 0:00:02]} Ra5 {[%emt 0:00:01]} 37. Kh2 {[%emt 0:00:11]} Ke6 {[%emt 0:00:09]} 38. Kh3 {[%emt 0:00:08]} Kd5 {[%emt 0:00:15]} 39. Kg4 {[%emt 0:00:03]} Kc4 {[%emt 0:00:06]} 40. Kf5 {[%emt 0:00:04]} Ra2 {[%emt 0:00:05]} 41. Rc1+ {[%emt 0:00:51]} Kd3 {[%emt 0:00:14]} 42. f4 {[%emt 0:00:37]} Rxg2 {[%emt 0:00:30]} 43. g4 {[%emt 0:00:10]} b4 {[%emt 0:00:06]} 44. Rc6 {[%emt 0:00:07]} b3 {[%emt 0:00:16]} 45. Rxf6 {[%emt 0:00:02]} b2 {[%emt 0:00:04]} 46. Rb6 {[%emt 0:00:04]} Kc2 {[%emt 0:00:05]} 47. Rc6+ {[%emt 0:00:06]} Kd1 {[%emt 0:00:08]} 48. Rb6 {[%emt 0:00:07]} Kc1 {[%emt 0:00:03]} 49. Rc6+ {[%emt 0:00:12]} Rc2 {[%emt 0:00:13]} 50. Rxh6 {[%emt 0:00:08]} Rc5+ {[%emt 0:00:49]} 51. Kf6 {[%emt 0:00:03]} Rc6+ {[%emt 0:00:03]} 0-1

[Event "Hungarian Rapid-ch 2022"]
[Site "Ajka"]
[Date "2022.07.15"]
[Round "2.9"]
[White "Restas, Peter"]
[Black "Vertetics, Attila"]
[Result "0-1"]
[ECO "A11"]
[WhiteElo "2061"]
[BlackElo "2465"]
[Annotator "ChessBase"]
[PlyCount "146"]
[EventDate "2022.07.15"]
[EventType "swiss"]
[EventCountry "HUN"]
[SourceTitle "playchess.com"]
[Source "ChessBase"]
[SourceQuality "1"]
[TimeControl "900+10"]

1. c4 {[%emt 0:00:12]} c6 {[%emt 0:00:13]} 2. Nc3 {[%emt 0:00:02]} d5 {[%emt 0:00:07]} 3. d4 {[%emt 0:00:02]} Nf6 {[%emt 0:00:03]} 4. cxd5 {[%emt 0:00:01]} cxd5 {[%emt 0:00:01]} 5. Bf4 {[%emt 0:00:03]} Nc6 {[%emt 0:00:02]} 6. e3 {[%emt 0:00:01]} Bg4 {[%emt 0:00:06]} 7. f3 {[%emt 0:00:07]} Bd7 {[%emt 0:00:14]} 8. Bd3 {[%emt 0:00:06]} e6 {[%emt 0:00:03]} 9. Nge2 {[%emt 0:00:13]} Nh5 {[%emt 0:00:05]} 10. O-O {[%emt 0:00:24]} Nxf4 {[%emt 0:00:04]} 11. Nxf4 {[%emt 0:00:02]} Bd6 {[%emt 0:00:13]} 12. Nfe2 {[%emt 0:00:05]} O-O {[%emt 0:00:05]} 13. Kh1 {[%emt 0:00:11]} Rc8 {[%emt 0:00:05]} 14. e4 {[%emt 0:00:10]} dxe4 {[%emt 0:01:07]} 15. fxe4 {[%emt 0:00:02]} e5 {[%emt 0:00:23]} 16. d5 {[%emt 0:00:25]} Ne7 {[%emt 0:00:23]} 17. Qb3 {[%emt 0:00:34]} Rb8 {[%emt 0:01:23]} 18. Nb5 {[%emt 0:00:40]} Qb6 {[%emt 0:02:25]} 19. Nxd6 {[%emt 0:00:21]} Qxd6 {[%emt 0:00:02]} 20. Ng3 {[%emt 0:00:17]} Rfc8 {[%emt 0:00:50]} 21. Rac1 {[%emt 0:00:32]} b5 {[%emt 0:03:21]} 22. a3 {[%emt 0:00:35]} a5 {[%emt 0:00:10]} 23. Rxc8+ {[%emt 0:00:16]} Nxc8 {[%emt 0:00:01]} 24. Rc1 {[%emt 0:00:12]} b4 {[%emt 0:00:14]} 25. h3 {[%emt 0:00:36]} a4 {[%emt 0:01:07]} 26. Qc4 {[%emt 0:00:27]} bxa3 {[%emt 0:00:03]} 27. bxa3 {[%emt 0:00:02]} Qxa3 {[%emt 0:00:06]} 28. Qc7 {[%emt 0:00:02]} g6 {[%emt 0:03:02]} 29. Qd8+ {[%emt 0:00:15]} Kg7 {[%emt 0:00:01]} 30. Rf1 {[%emt 0:00:21]} Qe7 {[%emt 0:00:11]} 31. Qc7 {[%emt 0:00:12]} Qd6 {[%emt 0:00:10]} 32. Qd8 {[%emt 0:00:43]} Ne7 {[%emt 0:00:37]} 33. Qa5 {[%emt 0:00:16]} Rb3 {[%emt 0:00:05]} 34. Rf3 {[%emt 0:00:09]} a3 {[%emt 0:00:54]} 35. Ne2 {[%emt 0:00:18]} Nc8 {[%emt 0:00:19]} 36. Nc1 {[%emt 0:00:12]} Rb2 {[%emt 0:00:12]} 37. Qc3 {[%emt 0:00:18]} Nb6 {[%emt 0:00:32]} 38. Bf1 {[%emt 0:00:47]} Na4 {[%emt 0:00:07]} 39. Qc4 {[%emt 0:00:49]} Qc5 {[%emt 0:00:50]} 40. Qa6 {[%emt 0:00:32]} Rb6 {[%emt 0:00:34]} 41. Qa7 {[%emt 0:00:02]} Rd6 {[%emt 0:00:14]} 42. Qxc5 {[%emt 0:00:15]} Nxc5 {[%emt 0:00:01]} 43. Rxa3 {[%emt 0:00:01]} Nxe4 {[%emt 0:00:02]} 44. Bc4 {[%emt 0:00:16]} f5 {[%emt 0:00:29]} 45. Nd3 {[%emt 0:00:04]} Kf6 {[%emt 0:00:01]} 46. Ra7 {[%emt 0:00:07]} h5 {[%emt 0:00:02]} 47. h4 {[%emt 0:00:03]} f4 {[%emt 0:00:06]} 48. Ra8 {[%emt 0:00:09]} Ng3+ {[%emt 0:00:05]} 49. Kh2 {[%emt 0:00:03]} Rb6 {[%emt 0:00:35]} 50. Ra1 {[%emt 0:00:28]} Ne4 {[%emt 0:00:22]} 51. Re1 {[%emt 0:00:11]} Bf5 {[%emt 0:00:01]} 52. Kg1 {[%emt 0:00:32]} Rb8 {[%emt 0:00:04]} 53. Ra1 {[%emt 0:00:06]} Rb6 {[%emt 0:00:05]} 54. Re1 {[%emt 0:00:03]} Rd6 {[%emt 0:00:17]} 55. Kh2 {[%emt 0:00:19]} Rd8 {[%emt 0:00:13]} 56. Rb1 {[%emt 0:00:14]} Nd6 {[%emt 0:00:04]} 57. Rb6 {[%emt 0:00:08]} Bxd3 {[%emt 0:00:16]} 58. Bxd3 {[%emt 0:00:02]} g5 {[%emt 0:00:00]} 59. hxg5+ {[%emt 0:00:06]} Kxg5 {[%emt 0:00:01]} 60. Bb1 {[%emt 0:00:08]} e4 {[%emt 0:00:12]} 61. Kh3 {[%emt 0:00:02]} e3 {[%emt 0:00:11]} 62. Bd3 {[%emt 0:00:02]} Kf6 {[%emt 0:00:17]} 63. Be2 {[%emt 0:00:12]} Ke5 {[%emt 0:00:08]} 64. Ra6 {[%emt 0:00:13]} Rc8 {[%emt 0:00:25]} 65. Bxh5 {[%emt 0:00:04]} Rh8 {[%emt 0:00:09]} 66. Kg4 {[%emt 0:00:01]} Rg8+ {[%emt 0:00:18]} 67. Kh3 {[%emt 0:00:02]} Rh8 {[%emt 0:00:06]} 68. Kg4 {[%emt 0:00:01]} Ne4 {[%emt 0:00:09]} 69. Bg6 {[%emt 0:00:22]} Rg8 {[%emt 0:00:24]} 70. Kf3 {[%emt 0:00:21]} Nd6 {[%emt 0:00:07]} 71. Bd3 {[%emt 0:00:08]} Rg3+ {[%emt 0:00:02]} 72. Ke2 {[%emt 0:00:02]} Rxg2+ {[%emt 0:00:01]} 73. Ke1 {[%emt 0:00:01]} f3 {[%emt 0:00:02]} 0-1

[Event "Hungarian Rapid-ch 2022"]
[Site "Ajka"]
[Date "2022.07.15"]
[Round "2.10"]
[White "Antal, Gergely"]
[Black "Csati, Oliver"]
[Result "1-0"]
[ECO "B52"]
[WhiteElo "2571"]
[BlackElo "2218"]
[Annotator "ChessBase"]
[PlyCount "55"]
[EventDate "2022.07.15"]
[EventType "swiss"]
[EventCountry "HUN"]
[SourceTitle "playchess.com"]
[Source "ChessBase"]
[SourceQuality "1"]
[TimeControl "900+10"]

1. e4 {[%emt 0:00:14]} c5 {[%emt 0:00:18]} 2. Nf3 {[%emt 0:00:02]} d6 {[%emt 0:00:06]} 3. Bb5+ {[%emt 0:00:02]} Bd7 {[%emt 0:00:09]} 4. Bxd7+ {[%emt 0:00:02]} Qxd7 {[%emt 0:00:10]} 5. c4 {[%emt 0:00:03]} Nc6 {[%emt 0:00:16]} 6. Nc3 {[%emt 0:00:16]} g6 {[%emt 0:00:28]} 7. d4 {[%emt 0:00:07]} cxd4 {[%emt 0:00:24]} 8. Nxd4 {[%emt 0:00:01]} Bg7 {[%emt 0:00:05]} 9. Be3 {[%emt 0:00:03]} Rc8 {[%emt 0:00:40]} 10. Rc1 {[%emt 0:01:55]} Nf6 {[%emt 0:00:10]} 11. f3 {[%emt 0:00:05]} O-O {[%emt 0:00:05]} 12. b3 {[%emt 0:00:35]} e6 {[%emt 0:01:59]} 13. O-O {[%emt 0:00:51]} d5 {[%emt 0:00:24]} 14. cxd5 {[%emt 0:01:46]} exd5 {[%emt 0:00:14]} 15. Nxc6 {[%emt 0:00:03]} bxc6 {[%emt 0:00:19]} 16. e5 {[%emt 0:00:02]} Ne8 {[%emt 0:00:25]} 17. Bc5 {[%emt 0:01:50]} Bxe5 {[%emt 0:00:24]} 18. Bxf8 {[%emt 0:00:02]} Kxf8 {[%emt 0:00:06]} 19. f4 {[%emt 0:00:10]} Bf6 {[%emt 0:00:50]} 20. Ne4 {[%emt 0:00:09]} Bd8 {[%emt 0:02:17]} 21. f5 {[%emt 0:02:16]} Bb6+ {[%emt 0:02:01]} 22. Kh1 {[%emt 0:00:02]} Qe7 {[%emt 0:00:16]} 23. fxg6 {[%emt 0:01:33]} hxg6 {[%emt 0:00:01]} 24. Qg4 {[%emt 0:00:11]} Rc7 {[%emt 0:03:00]} 25. Ng5 {[%emt 0:00:03]} Be3 {[%emt 0:00:46]} 26. Ne6+ {[%emt 0:02:10]} Kg8 {[%emt 0:00:01]} 27. Nxc7 {[%emt 0:00:02]} Bxc1 {[%emt 0:00:07]} 28. Nxe8 {[%emt 0:00:03]} 1-0

[Event "Hungarian Rapid-ch 2022"]
[Site "Ajka"]
[Date "2022.07.15"]
[Round "2.11"]
[White "Deak, Sandor"]
[Black "Horvath, Adam"]
[Result "1/2-1/2"]
[ECO "E11"]
[WhiteElo "2264"]
[BlackElo "2520"]
[Annotator "ChessBase"]
[PlyCount "119"]
[EventDate "2022.07.15"]
[EventType "swiss"]
[EventCountry "HUN"]
[SourceTitle "playchess.com"]
[Source "ChessBase"]
[SourceQuality "1"]
[TimeControl "900+10"]

1. d4 {[%emt 0:00:11]} Nf6 {[%emt 0:00:18]} 2. c4 {[%emt 0:00:01]} e6 {[%emt 0:00:01]} 3. Nf3 {[%emt 0:00:01]} Bb4+ {[%emt 0:00:03]} 4. Bd2 {[%emt 0:00:02]} a5 {[%emt 0:00:03]} 5. g3 {[%emt 0:00:02]} b6 {[%emt 0:00:01]} 6. Bg2 {[%emt 0:00:02]} Bb7 {[%emt 0:00:02]} 7. O-O {[%emt 0:00:01]} O-O {[%emt 0:00:05]} 8. Bg5 {[%emt 0:01:01]} Be7 {[%emt 0:00:06]} 9. Bxf6 {[%emt 0:00:12]} Bxf6 {[%emt 0:00:02]} 10. Qc2 {[%emt 0:00:02]} g6 {[%emt 0:00:11]} 11. Nc3 {[%emt 0:01:00]} d6 {[%emt 0:00:12]} 12. Rad1 {[%emt 0:00:09]} Nd7 {[%emt 0:00:06]} 13. b3 {[%emt 0:00:57]} Bg7 {[%emt 0:00:08]} 14. e4 {[%emt 0:01:44]} Qe7 {[%emt 0:00:08]} 15. Rfe1 {[%emt 0:00:24]} Rac8 {[%emt 0:01:41]} 16. h4 {[%emt 0:01:03]} Rfd8 {[%emt 0:02:30]} 17. Qd2 {[%emt 0:01:01]} Qf8 {[%emt 0:00:35]} 18. Qd3 {[%emt 0:00:31]} Ba6 {[%emt 0:00:58]} 19. d5 {[%emt 0:02:05]} e5 {[%emt 0:05:56]} 20. Bh3 {[%emt 0:00:06]} c5 {[%emt 0:01:05]} 21. dxc6 {[%emt 0:01:04]} Rxc6 {[%emt 0:00:03]} 22. Bxd7 {[%emt 0:00:02]} Rxd7 {[%emt 0:00:01]} 23. a4 {[%emt 0:00:12]} Rd8 {[%emt 0:00:22]} 24. Kg2 {[%emt 0:00:08]} Bc8 {[%emt 0:00:18]} 25. Ng1 {[%emt 0:01:11]} Bg4 {[%emt 0:00:11]} 26. f3 {[%emt 0:00:02]} Be6 {[%emt 0:00:08]} 27. Nh3 {[%emt 0:00:34]} h6 {[%emt 0:00:28]} 28. Nd5 {[%emt 0:00:21]} Kh8 {[%emt 0:01:06]} 29. Rf1 {[%emt 0:00:16]} Qe8 {[%emt 0:00:13]} 30. f4 {[%emt 0:00:16]} exf4 {[%emt 0:00:15]} 31. Nhxf4 {[%emt 0:00:13]} Bg4 {[%emt 0:00:06]} 32. Rde1 {[%emt 0:00:01]} h5 {[%emt 0:01:38]} 33. Ne3 {[%emt 0:00:13]} Bc8 {[%emt 0:00:11]} 34. Nfd5 {[%emt 0:00:33]} Qe6 {[%emt 0:00:16]} 35. Nf4 {[%emt 0:00:16]} Qe5 {[%emt 0:00:02]} 36. Ned5 {[%emt 0:00:09]} Re8 {[%emt 0:00:24]} 37. Nh3 {[%emt 0:00:31]} Kg8 {[%emt 0:00:40]} 38. Ng5 {[%emt 0:00:06]} Rf8 {[%emt 0:00:06]} 39. Nf3 {[%emt 0:00:16]} Qe6 {[%emt 0:00:19]} 40. Ng5 {[%emt 0:00:02]} Qe5 {[%emt 0:00:08]} 41. Nf3 {[%emt 0:00:07]} Qe8 {[%emt 0:00:23]} 42. Nd4 {[%emt 0:00:20]} Rc5 {[%emt 0:00:02]} 43. Nxb6 {[%emt 0:00:13]} Bg4 {[%emt 0:00:30]} 44. Nd5 {[%emt 0:00:07]} Qd7 {[%emt 0:00:03]} 45. Nf6+ {[%emt 0:00:21]} Bxf6 {[%emt 0:00:02]} 46. Rxf6 {[%emt 0:00:01]} Qe7 {[%emt 0:00:16]} 47. Rf4 {[%emt 0:00:25]} Re8 {[%emt 0:00:06]} 48. Nb5 {[%emt 0:00:12]} Rd8 {[%emt 0:00:12]} 49. Nc3 {[%emt 0:00:05]} Be6 {[%emt 0:00:08]} 50. Qd2 {[%emt 0:00:23]} Re5 {[%emt 0:00:02]} 51. Rd1 {[%emt 0:00:09]} Qb7 {[%emt 0:00:07]} 52. Qc2 {[%emt 0:00:10]} Bg4 {[%emt 0:00:04]} 53. Rd2 {[%emt 0:00:02]} Be6 {[%emt 0:00:17]} 54. Nb5 {[%emt 0:00:12]} Qc6 {[%emt 0:00:31]} 55. Nd4 {[%emt 0:00:15]} Qb7 {[%emt 0:00:09]} 56. Nf3 {[%emt 0:00:14]} Rc5 {[%emt 0:00:02]} 57. Ng5 {[%emt 0:00:04]} Re5 {[%emt 0:00:08]} 58. Nf3 {[%emt 0:00:02]} Rc5 {[%emt 0:00:01]} 59. Ng5 {[%emt 0:00:15]} Re5 {[%emt 0:00:01]} 60. Kh2 1/2-1/2

[Event "Hungarian Rapid-ch 2022"]
[Site "Ajka"]
[Date "2022.07.15"]
[Round "2.12"]
[White "Kassay, Krisztian"]
[Black "Kantor, Gergely"]
[Result "0-1"]
[ECO "A45"]
[WhiteElo "2157"]
[BlackElo "2582"]
[Annotator "ChessBase"]
[PlyCount "80"]
[EventDate "2022.07.15"]
[EventType "swiss"]
[EventCountry "HUN"]
[SourceTitle "playchess.com"]
[Source "ChessBase"]
[SourceQuality "1"]
[TimeControl "900+10"]

1. d4 {[%emt 0:00:50]} Nf6 {[%emt 0:00:11]} 2. Bf4 {[%emt 0:00:09]} d5 {[%emt 0:00:08]} 3. e3 {[%emt 0:00:15]} c5 {[%emt 0:00:02]} 4. c3 {[%emt 0:00:13]} Nc6 {[%emt 0:00:04]} 5. Nf3 {[%emt 0:00:02]} Qb6 {[%emt 0:00:03]} 6. Qb3 {[%emt 0:00:05]} c4 {[%emt 0:00:01]} 7. Qc2 {[%emt 0:00:01]} Bf5 {[%emt 0:00:21]} 8. Qc1 {[%emt 0:00:02]} Nh5 {[%emt 0:00:18]} 9. Bg3 {[%emt 0:01:31]} Nxg3 {[%emt 0:00:38]} 10. hxg3 {[%emt 0:00:02]} g6 {[%emt 0:00:05]} 11. Nbd2 {[%emt 0:00:20]} Rc8 {[%emt 0:00:23]} 12. Be2 {[%emt 0:00:24]} Bg7 {[%emt 0:00:04]} 13. Nh4 {[%emt 0:01:39]} Bd7 {[%emt 0:01:13]} 14. e4 {[%emt 0:00:37]} Nxd4 {[%emt 0:00:30]} 15. cxd4 {[%emt 0:01:18]} Bxd4 {[%emt 0:00:02]} 16. O-O {[%emt 0:01:12]} Bxb2 {[%emt 0:00:13]} 17. Qc2 {[%emt 0:00:37]} Bxa1 {[%emt 0:00:57]} 18. Rxa1 {[%emt 0:00:03]} e6 {[%emt 0:02:25]} 19. exd5 {[%emt 0:00:58]} exd5 {[%emt 0:00:07]} 20. Rb1 {[%emt 0:00:26]} Qc6 {[%emt 0:00:46]} 21. Ndf3 {[%emt 0:01:57]} O-O {[%emt 0:00:37]} 22. Nd4 {[%emt 0:00:36]} Qc7 {[%emt 0:00:26]} 23. Qd2 {[%emt 0:02:12]} Rfe8 {[%emt 0:01:04]} 24. Qh6 {[%emt 0:00:48]} Re5 {[%emt 0:02:02]} 25. f4 {[%emt 0:00:41]} Re4 {[%emt 0:00:47]} 26. Nhf3 {[%emt 0:01:19]} f6 {[%emt 0:02:07]} 27. f5 {[%emt 0:00:28]} Bxf5 {[%emt 0:00:28]} 28. Nxf5 {[%emt 0:00:11]} gxf5 {[%emt 0:00:04]} 29. Qxf6 {[%emt 0:00:43]} Rxe2 {[%emt 0:00:10]} 30. Qxf5 {[%emt 0:00:02]} Qc5+ {[%emt 0:01:06]} 31. Kh2 {[%emt 0:00:08]} Re7 {[%emt 0:00:15]} 32. Qg4+ {[%emt 0:00:24]} Rg7 {[%emt 0:00:11]} 33. Qe6+ {[%emt 0:00:01]} Kh8 {[%emt 0:00:05]} 34. Ne5 {[%emt 0:00:02]} Qf8 {[%emt 0:01:24]} 35. Qxd5 {[%emt 0:00:30]} Qf2 {[%emt 0:00:17]} 36. g4 {[%emt 0:00:13]} c3 {[%emt 0:00:18]} 37. Rxb7 {[%emt 0:00:07]} Rxb7 {[%emt 0:00:07]} 38. Qxb7 {[%emt 0:00:01]} Qh4+ {[%emt 0:00:01]} 39. Kg1 {[%emt 0:00:03]} Qe1+ {[%emt 0:00:01]} 40. Kh2 {[%emt 0:00:05]} Qxe5+ {[%emt 0:00:01]} 0-1

[Event "Hungarian Rapid-ch 2022"]
[Site "Ajka"]
[Date "2022.07.15"]
[Round "2.13"]
[White "Aczel, Gergely"]
[Black "Nagy, Kristof"]
[Result "1-0"]
[ECO "D35"]
[WhiteElo "2499"]
[BlackElo "2162"]
[Annotator "ChessBase"]
[PlyCount "161"]
[EventDate "2022.07.15"]
[EventType "swiss"]
[EventCountry "HUN"]
[SourceTitle "playchess.com"]
[Source "ChessBase"]
[SourceQuality "1"]
[TimeControl "900+10"]

1. d4 {[%emt 0:00:13]} d5 {[%emt 0:00:13]} 2. c4 {[%emt 0:00:01]} e6 {[%emt 0:00:05]} 3. Nc3 {[%emt 0:00:01]} Nf6 {[%emt 0:00:03]} 4. cxd5 {[%emt 0:00:02]} exd5 {[%emt 0:00:03]} 5. Bg5 {[%emt 0:00:01]} Be7 {[%emt 0:00:12]} 6. e3 {[%emt 0:00:02]} O-O {[%emt 0:00:12]} 7. Bd3 {[%emt 0:00:15]} c6 {[%emt 0:00:08]} 8. h3 {[%emt 0:00:03]} Nbd7 {[%emt 0:00:53]} 9. Nf3 {[%emt 0:00:10]} b6 {[%emt 0:00:24]} 10. O-O {[%emt 0:00:04]} Bb7 {[%emt 0:00:03]} 11. Rc1 {[%emt 0:00:16]} Re8 {[%emt 0:00:26]} 12. Qc2 {[%emt 0:00:12]} h6 {[%emt 0:00:27]} 13. Bf4 {[%emt 0:00:59]} Bb4 {[%emt 0:01:08]} 14. a3 {[%emt 0:00:15]} Bxc3 {[%emt 0:00:34]} 15. bxc3 {[%emt 0:01:54]} Qe7 {[%emt 0:00:52]} 16. a4 {[%emt 0:00:29]} Ne4 {[%emt 0:00:46]} 17. c4 {[%emt 0:00:36]} c5 {[%emt 0:03:17]} 18. cxd5 {[%emt 0:00:56]} Bxd5 {[%emt 0:00:05]} 19. Rfd1 {[%emt 0:01:07]} Ndf6 {[%emt 0:04:05]} 20. a5 {[%emt 0:01:45]} Qe6 {[%emt 0:00:44]} 21. Bb5 {[%emt 0:07:31]} Rf8 {[%emt 0:01:43]} 22. dxc5 {[%emt 0:01:11]} bxc5 {[%emt 0:00:44]} 23. Rb1 {[%emt 0:00:26]} Rfc8 {[%emt 0:00:58]} 24. Bf1 {[%emt 0:00:07]} g5 {[%emt 0:00:34]} 25. Be5 {[%emt 0:00:15]} g4 {[%emt 0:00:11]} 26. Bxf6 {[%emt 0:00:25]} Nxf6 {[%emt 0:00:04]} 27. hxg4 {[%emt 0:00:05]} Qxg4 {[%emt 0:00:15]} 28. Nh2 {[%emt 0:00:10]} Qg5 {[%emt 0:00:24]} 29. Qc3 {[%emt 0:00:01]} Ne4 {[%emt 0:00:13]} 30. Qe1 {[%emt 0:00:11]} c4 {[%emt 0:00:03]} 31. f3 {[%emt 0:00:05]} Nf6 {[%emt 0:00:01]} 32. e4 {[%emt 0:00:02]} Be6 {[%emt 0:00:01]} 33. Rdc1 {[%emt 0:00:07]} Nh5 {[%emt 0:00:06]} 34. Qf2 {[%emt 0:00:09]} Qxa5 {[%emt 0:00:05]} 35. Be2 {[%emt 0:00:17]} Nf4 {[%emt 0:00:03]} 36. Nf1 {[%emt 0:00:07]} Qg5 {[%emt 0:00:04]} 37. Kh1 {[%emt 0:00:06]} a5 {[%emt 0:00:45]} 38. g3 {[%emt 0:00:19]} Nd3 {[%emt 0:00:10]} 39. Bxd3 {[%emt 0:00:02]} cxd3 {[%emt 0:00:01]} 40. Qd2 {[%emt 0:00:15]} Qh5+ {[%emt 0:00:04]} 41. Kg2 {[%emt 0:00:03]} Bh3+ {[%emt 0:00:01]} 42. Kf2 {[%emt 0:00:02]} Bxf1 {[%emt 0:00:02]} 43. Kxf1 {[%emt 0:00:12]} Qh1+ {[%emt 0:00:03]} 44. Kf2 {[%emt 0:00:01]} Qh2+ {[%emt 0:00:01]} 45. Ke3 {[%emt 0:00:00]} Rxc1 {[%emt 0:00:34]} 46. Qxh2 {[%emt 0:00:02]} Rxb1 {[%emt 0:00:01]} 47. Qxh6 {[%emt 0:00:03]} a4 {[%emt 0:00:14]} 48. Qg5+ {[%emt 0:00:01]} Kf8 {[%emt 0:00:02]} 49. Qh6+ {[%emt 0:00:06]} Kg8 {[%emt 0:00:04]} 50. f4 {[%emt 0:00:33]} Rb3 {[%emt 0:00:34]} 51. Qg5+ {[%emt 0:00:20]} Kf8 {[%emt 0:00:01]} 52. Qc5+ {[%emt 0:00:03]} Kg8 {[%emt 0:00:04]} 53. Qd5 {[%emt 0:00:09]} Rbb8 {[%emt 0:00:24]} 54. Qg5+ {[%emt 0:00:02]} Kf8 {[%emt 0:00:00]} 55. f5 {[%emt 0:00:27]} a3 {[%emt 0:00:32]} 56. f6 {[%emt 0:00:30]} a2 {[%emt 0:00:17]} 57. Qc5+ {[%emt 0:00:15]} Kg8 {[%emt 0:00:01]} 58. Qg5+ {[%emt 0:00:03]} Kf8 {[%emt 0:00:01]} 59. Qh5 {[%emt 0:00:32]} Ke8 {[%emt 0:00:14]} 60. Qe5+ {[%emt 0:00:03]} Kf8 {[%emt 0:00:12]} 61. Qc5+ {[%emt 0:00:15]} Kg8 {[%emt 0:00:03]} 62. Qg5+ {[%emt 0:00:02]} Kf8 {[%emt 0:00:04]} 63. Qg7+ {[%emt 0:00:10]} Ke8 {[%emt 0:00:01]} 64. Qg8+ {[%emt 0:00:01]} Kd7 {[%emt 0:00:01]} 65. Qxf7+ {[%emt 0:00:01]} Kc6 {[%emt 0:00:16]} 66. Qd5+ {[%emt 0:00:06]} Kb6 {[%emt 0:00:03]} 67. Qd4+ {[%emt 0:00:04]} Kc6 {[%emt 0:00:01]} 68. Qc3+ {[%emt 0:00:14]} Kb6 {[%emt 0:00:12]} 69. Qa1 {[%emt 0:00:33]} Rd8 {[%emt 0:00:06]} 70. Kd2 {[%emt 0:00:04]} Kb5 {[%emt 0:00:07]} 71. e5 {[%emt 0:00:10]} Rg8 {[%emt 0:01:04]} 72. f7 {[%emt 0:00:14]} Rxg3 {[%emt 0:00:04]} 73. e6 {[%emt 0:00:23]} Rg2+ 74. Kxd3 {[%emt 0:00:04]} Rg3+ {[%emt 0:00:34]} 75. Ke4 {[%emt 0:00:10]} Ra4+ {[%emt 0:00:01]} 76. Ke5 {[%emt 0:00:08]} Re3+ {[%emt 0:00:25]} 77. Kf6 {[%emt 0:00:11]} Rf3+ {[%emt 0:00:01]} 78. Ke7 {[%emt 0:00:07]} Ra7+ {[%emt 0:00:00]} 79. Kd6 {[%emt 0:00:19]} Kc4 {[%emt 0:00:33]} 80. Qc1+ {[%emt 0:00:09]} Kb4 {[%emt 0:00:03]} 81. Qc5+ {[%emt 0:00:08]} 1-0

[Event "Hungarian Rapid-ch 2022"]
[Site "Ajka"]
[Date "2022.07.15"]
[Round "2.14"]
[White "Seres, Bela"]
[Black "Mihok, Oliver"]
[Result "1/2-1/2"]
[ECO "B40"]
[WhiteElo "2207"]
[BlackElo "2549"]
[Annotator "ChessBase"]
[PlyCount "79"]
[EventDate "2022.07.15"]
[EventType "swiss"]
[EventCountry "HUN"]
[SourceTitle "playchess.com"]
[Source "ChessBase"]
[SourceQuality "1"]
[TimeControl "900+10"]

1. e4 {[%emt 0:00:11]} c5 {[%emt 0:00:12]} 2. Nf3 {[%emt 0:00:02]} e6 {[%emt 0:00:05]} 3. b3 {[%emt 0:00:15]} a6 {[%emt 0:00:01]} 4. Bb2 {[%emt 0:00:03]} Nc6 {[%emt 0:00:01]} 5. Be2 {[%emt 0:00:09]} Qc7 {[%emt 0:00:38]} 6. O-O {[%emt 0:00:05]} Nf6 {[%emt 0:00:04]} 7. Nc3 {[%emt 0:00:02]} b5 {[%emt 0:00:31]} 8. d3 {[%emt 0:00:18]} Be7 {[%emt 0:00:16]} 9. Re1 {[%emt 0:00:01]} d6 {[%emt 0:00:29]} 10. Bf1 {[%emt 0:00:12]} Bb7 {[%emt 0:00:04]} 11. Ne2 {[%emt 0:00:31]} O-O {[%emt 0:00:09]} 12. Ng3 {[%emt 0:00:03]} Rfd8 {[%emt 0:00:35]} 13. Qd2 {[%emt 0:00:16]} Rac8 {[%emt 0:00:34]} 14. Qg5 {[%emt 0:01:04]} h6 {[%emt 0:00:28]} 15. Qf4 Nd4 {[%emt 0:00:13]} 16. Rac1 {[%emt 0:01:52]} e5 {[%emt 0:00:57]} 17. Qd2 {[%emt 0:00:40]} Nxf3+ {[%emt 0:00:16]} 18. gxf3 {[%emt 0:00:01]} Nh7 {[%emt 0:00:32]} 19. f4 {[%emt 0:01:18]} Nf8 {[%emt 0:00:55]} 20. Nf5 {[%emt 0:01:02]} Bf6 {[%emt 0:00:26]} 21. Qe2 {[%emt 0:00:32]} Ng6 {[%emt 0:00:40]} 22. fxe5 {[%emt 0:01:07]} dxe5 {[%emt 0:00:12]} 23. Qf3 {[%emt 0:00:37]} Nf4 {[%emt 0:00:34]} 24. Rcd1 {[%emt 0:00:21]} Kh7 {[%emt 0:00:25]} 25. Bc1 {[%emt 0:00:55]} g6 {[%emt 0:00:10]} 26. Ne3 {[%emt 0:00:31]} Bg7 {[%emt 0:00:59]} 27. c4 {[%emt 0:00:17]} f5 {[%emt 0:01:19]} 28. Nd5 {[%emt 0:00:07]} Nxd5 {[%emt 0:00:45]} 29. exd5 {[%emt 0:00:35]} Rf8 {[%emt 0:00:36]} 30. Bg2 {[%emt 0:00:33]} Rce8 {[%emt 0:00:12]} 31. Re2 {[%emt 0:00:48]} e4 {[%emt 0:01:32]} 32. dxe4 {[%emt 0:00:25]} fxe4 {[%emt 0:00:02]} 33. Qg3 {[%emt 0:00:03]} Be5 {[%emt 0:00:52]} 34. Qh3 {[%emt 0:00:07]} Qg7 {[%emt 0:00:46]} 35. Bxe4 {[%emt 0:00:13]} Bc8 {[%emt 0:00:09]} 36. Qg2 {[%emt 0:00:03]} Bd4 {[%emt 0:00:19]} 37. Rde1 {[%emt 0:00:46]} Bd7 {[%emt 0:00:51]} 38. Be3 {[%emt 0:00:23]} Bxe3 {[%emt 0:00:56]} 39. Rxe3 {[%emt 0:00:08]} Rf6 {[%emt 0:00:26]} 40. Bf3 {[%emt 0:01:29]} 1/2-1/2